bitfinex/quotes_ETHUSD_20250721
["timestamp","ask_amount","ask_price","bid_price","bid_amount"]
[1753099440815,0.7726,3796.7,3795.9,0.47]
[1753099441011,2.63419142,3796.3,3795.6,2.63462249]
[1753099441216,0.7726,3796.7,3795.4,0.001]
[1753099441444,0.3523,3796.2,3795.4,0.001]
[1753099441646,2.63409307,3796.4,3795.4,0.001]
[1753099441880,2.63427184,3796.2,3795.5,2.63468682]
[1753099442156,0.8241,3797.1,3796.2,2.63415051]
[1753099442357,2.63365815,3797.0,3796.2,2.63415051]
[1753099442555,0.8241,3797.1,3795.9,0.47]
[1753099442857,0.55,3797.5,3796.0,0.8138]
[1753099443056,0.55,3797.1,3795.8,0.001]
[1753099443236,0.826,3796.3,3795.8,0.001]
[1753099443756,2.63442134,3795.9,3795.8,0.001]
[1753099444673,0.826,3796.3,3795.8,0.001]
[1753099444966,2.63442134,3795.9,3795.8,0.001]
[1753099446191,2.63442134,3795.9,3795.0,1.15883169]
[1753099446192,0.7681,3795.4,3795.0,1.15883169]
[1753099446390,6.40307668,3795.1,3795.0,1e-08]
[1753099446790,7.30537668,3795.1,3795.0,1e-08]
[1753099447220,6.75537668,3795.1,3795.0,1e-08]
[1753099447525,0.7681,3795.1,3795.0,1e-08]
[1753099447712,3.40307668,3795.1,3795.0,1e-08]
[1753099447916,2.63497668,3795.1,3795.0,1e-08]
[1753099448113,0.7963,3795.6,3795.0,1e-08]
[1753099448291,2.63471112,3795.5,3795.0,1e-08]
[1753099448491,0.7963,3796.0,3795.1,2.63496591]
[1753099448699,0.7963,3796.5,3795.0,1e-08]
[1753099448924,0.7963,3796.5,3795.1,1.2662]
[1753099449091,2.63407438,3796.4,3795.3,2.63477924]
[1753099449297,0.7963,3796.5,3795.1,3.90116828]
[1753099449494,2.63449151,3795.8,3795.1,3.90116463]
[1753099449720,2.63457833,3795.7,3795.1,1.2662]
[1753099450032,2.63450683,3795.8,3795.1,3.90114745]
[1753099450210,2.6346795,3795.6,3795.1,1.2662]
[1753099450412,2.63450729,3795.8,3795.1,1.2662]
[1753099450606,2.63448999,3795.9,3795.1,3.43116419]
[1753099450811,0.7963,3796.5,3795.1,0.7962]
[1753099451018,2.6343322,3796.1,3795.3,2.63478703]
[1753099451222,0.7963,3796.5,3795.3,0.47]
[1753099451223,2.63426101,3796.2,3795.3,0.47]
[1753099451534,1.17739575,3797.1,3795.5,2.63469898]
[1753099451696,1.17739575,3797.1,3795.4,0.7549]
[1753099451897,3.81098981,3797.1,3795.5,0.47]
[1753099452098,2.63454264,3795.8,3795.5,0.47]
[1753099452298,2.63454264,3795.8,3795.4,0.7549]
[1753099452299,2.63447535,3795.9,3795.4,0.7549]
[1753099452518,0.3523,3796.7,3795.5,0.47]
[1753099452719,3.002,3797.0,3795.5,0.47]
[1753099452918,0.002,3797.0,3795.5,0.47]
[1753099453151,2.63393946,3796.6,3795.9,2.63438126]
[1753099453435,0.002,3797.0,3795.8,0.47]
[1753099454136,0.002,3797.0,3795.9,3.44972408]
[1753099454344,0.002,3797.0,3796.1,0.8005]
[1753099454739,0.002,3797.0,3796.4,2.63401384]
[1753099454937,0.002,3797.0,3796.4,2.63402351]
[1753099455138,0.002,3797.0,3796.4,2.6340517]
[1753099455302,0.002,3797.0,3796.1,0.8005]
[1753099455507,2.63388102,3796.7,3796.1,0.8005]
[1753099456137,2.63381071,3796.8,3796.1,3.43475707]
[1753099456437,0.002,3797.0,3796.1,0.8005]
[1753099456609,2.63378079,3796.9,3796.2,2.63416306]
[1753099457243,0.002,3797.0,3796.3,0.4305]
[1753099457543,2.63372751,3796.9,3795.7,0.4305]
[1753099457840,0.002,3797.0,3795.3,3.45778482]
[1753099457841,2.63385024,3796.8,3796.0,2.63433098]
[1753099458006,0.002,3797.0,3796.1,3.86138155]
[1753099458203,0.002,3797.0,3796.9,2.63372751]
[1753099458431,0.002,3797.0,3796.9,3.42472751]
[1753099458636,0.002,3797.0,3796.9,4.48742059]
[1753099459003,0.002,3797.0,3796.9,4.46108332]
[1753099459429,0.002,3797.0,3796.9,1.2215]
[1753099459849,0.002,3797.0,3796.9,3.85522751]
[1753099461115,0.002,3797.0,3796.9,6.85522751]
[1753099462346,0.002,3797.0,3796.9,3.85522751]
[1753099463140,0.002,3797.0,3796.9,3.88156478]
[1753099463358,0.002,3797.0,3796.9,3.85522751]
[1753099463918,0.002,3797.0,3796.9,3.88156478]
[1753099464135,0.002,3797.0,3796.9,4.83310468]
[1753099464476,3.06,3798.6,3797.8,3.45915194]
[1753099464676,0.002,3799.0,3798.2,2.632777]
[1753099464973,0.002,3799.0,3797.9,0.4305]
[1753099465114,0.002,3799.0,3798.5,2.63257792]
[1753099465315,0.002,3799.0,3798.0,2.63291945]
[1753099465316,2.63248267,3798.7,3798.0,2.63291945]
[1753099465552,2.63261533,3798.6,3797.9,3.06352072]
[1753099465750,0.002,3799.0,3797.9,3.06352008]
[1753099465952,0.002,3799.0,3797.9,0.4305]
[1753099466220,2.63248367,3798.7,3798.0,2.63291061]
[1753099466545,0.002,3799.0,3797.9,0.4305]
[1753099466546,0.002,3799.0,3797.9,3.06351467]
[1753099466740,0.002,3799.0,3797.5,0.8261]
[1753099466944,0.002,3799.0,3797.7,0.4305]
[1753099467324,2.63432281,3799.0,3797.8,0.02633103]
[1753099467565,0.002,3799.0,3798.0,2.63296471]
[1753099467871,0.002,3799.0,3798.9,2.63234094]
[1753099468071,0.002,3799.0,3798.9,6.45844094]
[1753099468234,1e-08,3800.2,3798.9,3.91523026]
[1753099468434,1e-08,3800.2,3800.1,2.63150969]
[1753099469047,1e-08,3800.2,3800.1,3.08832478]
[1753099469471,1e-08,3800.2,3800.1,3.06200969]
[1753099470160,1e-08,3800.2,3799.8,0.8261]
[1753099470332,1e-08,3800.2,3800.0,0.4305]
[1753099470520,1e-08,3800.2,3800.1,2.63150969]
[1753099470718,1e-08,3800.2,3800.1,3.08832478]
[1753099471342,1e-08,3800.2,3800.1,3.74292715]
[1753099471545,1e-08,3800.2,3800.1,3.71661206]
[1753099471744,1e-08,3800.2,3800.1,8.11902715]
[1753099471950,1e-08,3800.2,3800.1,8.09271206]
[1753099472869,0.002,3800.8,3800.7,6.95829427]
[1753099473039,1e-08,3801.0,3800.9,6.95815582]
[1753099473237,1e-08,3801.0,3800.9,6.40815582]
[1753099473547,1e-08,3801.0,3800.9,6.83865582]
[1753099473735,1e-08,3801.0,3800.9,7.78563083]
[1753099474761,1e-08,3801.0,3800.9,8.33563083]
[1753099476166,1e-08,3801.0,3800.9,1.2077]
[1753099476378,1e-08,3801.0,3800.7,2.63103355]
[1753099476679,1e-08,3801.0,3800.9,2.63095582]
[1753099476975,1e-08,3801.0,3800.9,3.40815582]
[1753099477137,0.002,3801.8,3801.5,2.63054057]
[1753099477667,0.002,3801.8,3801.5,3.06104057]
[1753099478447,0.002,3801.8,3801.5,3.08734597]
[1753099478646,0.002,3801.8,3801.5,4.45493788]
[1753099479760,0.002,3801.8,3801.5,3.88314057]
[1753099481378,0.002,3801.8,3801.5,6.88314057]
[1753099482836,0.002,3801.8,3801.5,7.43314057]
[1753099483237,1e-08,3801.6,3801.5,7.43314057]
[1753099483435,1e-08,3801.8,3801.7,6.93120218]
[1753099483636,0.7595,3803.7,3802.9,3.38032929]
[1753099483836,12.0,3804.0,3803.6,2.62902572]
[1753099484191,12.0,3804.0,3803.0,0.4305]
[1753099484192,12.0,3804.0,3803.5,2.62913836]
[1753099484488,12.0,3804.0,3803.0,0.4305]
[1753099484489,12.0,3804.0,3803.2,2.62935376]
[1753099484789,12.0,3804.0,3803.4,2.6291655]
[1753099484938,12.0,3804.0,3803.5,2.62915043]
[1753099485336,12.0,3804.0,3803.0,3.4305]
[1753099485582,12.0,3804.0,3803.5,2.62912926]
[1753099485872,2.98323455,3803.9,3803.2,2.62930865]
[1753099486172,12.0,3804.0,3803.3,2.62928585]
[1753099486352,17.12888551,3803.9,3803.3,2.62928585]
[1753099486556,14.5,3803.9,3803.3,2.62928585]
[1753099486792,2.62899577,3803.8,3803.2,2.62936076]
[1753099487081,12.0,3804.0,3802.6,0.4305]
[1753099487383,26.5,3804.0,3803.5,2.62909871]
[1753099487565,26.5,3804.0,3802.9,2.62957216]
[1753099487566,12.0,3804.0,3803.9,2.62888088]
[1753099487738,12.0,3804.0,3803.9,3.09648088]
[1753099487943,0.7707,3805.6,3804.1,0.55]
[1753099488155,0.3543,3806.2,3804.0,3.0]
[1753099488156,0.7707,3806.0,3804.4,2.62853538]
[1753099488384,0.7707,3806.0,3804.5,4.0176]
[1753099488676,0.7707,3806.0,3804.4,2.62853538]
[1753099488677,0.8039,3807.2,3805.5,0.55]
[1753099488877,0.8039,3807.2,3805.6,0.49387706]
[1753099489084,0.8039,3807.2,3805.7,1.3783]
[1753099489240,1.2377,3807.8,3805.8,0.4676]
[1753099489441,1.2377,3807.8,3805.9,0.55]
[1753099489642,17.12630218,3807.7,3806.8,2.62687128]
[1753099489843,14.5,3807.7,3806.5,0.4676]
[1753099490052,14.5,3807.7,3806.7,0.55]
[1753099490252,14.5,3807.7,3806.9,0.55]
[1753099490704,0.4358,3808.3,3806.9,0.55]
[1753099490705,0.002,3809.2,3807.9,0.7584]
[1753099490867,0.002,3809.2,3809.1,6.38369206]
[1753099491071,0.002,3809.2,3809.1,1.3084]
[1753099491444,0.002,3809.2,3808.4,0.4676]
[1753099491648,0.002,3809.2,3808.7,0.55]
[1753099491879,0.002,3809.2,3809.1,2.62529206]
[1753099492093,0.002,3809.2,3807.9,0.4676]
[1753099492254,0.4338,3809.1,3807.9,0.7966]
[1753099492453,0.4338,3809.1,3807.5,0.4676]
[1753099492866,0.797,3808.8,3806.7,0.7826]
[1753099493067,0.797,3808.0,3806.2,0.7826]
[1753099493383,2.62633789,3807.6,3806.6,2.62695205]
[1753099493555,2.62633789,3807.6,3806.0,0.4676]
[1753099493556,0.4338,3807.9,3806.0,0.4676]
[1753099493756,0.4338,3807.9,3805.5,0.7826]
[1753099493957,2.62631604,3807.7,3806.6,2.62695103]
[1753099494161,2.62631604,3807.7,3806.1,0.4676]
[1753099494379,0.4338,3807.9,3806.1,0.4676]
[1753099494614,2.62554019,3808.8,3806.1,0.4676]
[1753099494615,0.7777,3808.5,3807.6,2.62628109]
[1753099494920,0.7777,3809.1,3807.7,3.02626257]
[1753099495086,0.7777,3809.1,3807.7,0.49386257]
[1753099495288,14.9338,3809.0,3807.6,0.8302]
[1753099495487,17.55916264,3809.0,3807.8,2.62618835]
[1753099495809,17.55916264,3809.0,3807.6,0.8302]
[1753099495810,14.5,3809.0,3808.8,2.62549645]
[1753099496014,0.7992,3809.6,3808.4,0.55]
[1753099496203,0.002,3809.9,3809.1,2.62529206]
[1753099496707,0.002,3809.9,3809.1,0.02625292]
[1753099496910,2.62495433,3809.6,3808.6,2.62560188]
[1753099497115,2.62674955,3809.9,3808.2,0.7717]
[1753099497116,0.4338,3809.7,3808.2,0.7717]
[1753099497296,2.62724319,3809.2,3808.2,2.6259125]
[1753099497620,0.8094,3809.2,3807.9,0.55]
[1753099497821,0.8094,3809.2,3808.3,2.62580996]
[1753099498130,0.8094,3809.2,3808.1,5.62591317]
[1753099498431,2.62561515,3808.7,3807.8,5.62617797]
[1753099498634,0.8094,3809.2,3807.5,2.62639527]
[1753099498635,2.62565359,3808.6,3807.5,2.62639527]
[1753099498837,0.8094,3809.2,3807.1,0.7891]
[1753099498838,2.62577444,3808.5,3807.6,2.62631449]
[1753099499040,2.62570856,3808.5,3807.7,3.0]
[1753099499323,2.62557707,3808.7,3807.1,0.7891]
[1753099499825,0.4338,3808.8,3807.1,0.7891]
[1753099500053,0.4338,3808.8,3804.9,0.5]
[1753099500054,0.7678,3808.5,3806.6,0.8241]
[1753099500361,0.4338,3808.4,3806.6,0.8241]
[1753099500488,2.62584355,3808.3,3807.2,0.5]
[1753099500825,2.62631487,3807.7,3806.8,2.62682245]
[1753099501155,2.62665856,3807.2,3806.3,2.6272153]
[1753099501354,2.62665856,3807.2,3805.6,0.8241]
[1753099501355,2.62690708,3806.8,3805.9,2.62744355]
[1753099501639,0.7678,3806.4,3804.8,0.4676]
[1753099501789,2.62722328,3806.3,3805.4,2.62783569]
[1753099501985,2.62722328,3806.3,3805.4,2.62778582]
[1753099502323,0.7678,3806.4,3805.5,0.02627775]
[1753099502527,0.7678,3806.4,3804.8,0.4676]
[1753099502712,0.7678,3806.4,3805.5,2.62771082]
[1753099502916,2.62722479,3806.3,3805.5,2.62771082]
[1753099503245,0.7678,3806.4,3805.5,2.62771082]
[1753099503394,0.7678,3806.4,3805.0,2.62812089]
[1753099503701,2.62693777,3806.8,3805.9,2.62744047]
[1753099503906,0.8254,3807.1,3805.4,0.02627844]
[1753099504138,0.8254,3807.1,3805.9,0.55]
[1753099504427,0.8061,3807.6,3807.0,2.6267386]
[1753099504639,0.8061,3807.6,3805.8,0.7666]
[1753099504928,2.62687109,3806.9,3805.8,2.62755682]
[1753099505090,3.43244175,3807.6,3806.2,2.62723341]
[1753099505091,0.4338,3807.2,3806.2,2.62723341]
[1753099505291,0.002,3806.3,3805.6,0.02627706]
[1753099505608,0.002,3806.3,3806.1,2.62735845]
[1753099505910,0.002,3806.3,3805.5,2.62777558]
[1753099505911,0.002,3806.3,3806.2,2.62729231]
[1753099506115,0.002,3806.3,3806.2,2.65356523]
[1753099506317,0.002,3806.3,3806.2,6.12116523]
[1753099506610,0.002,3806.3,3806.2,8.30962372]
[1753099506923,0.002,3806.3,3806.2,8.2833508]
[1753099507493,0.8061,3807.6,3807.5,2.62639527]
[1753099507692,0.8061,3807.6,3806.4,2.62715426]
[1753099507693,0.8233,3808.4,3807.8,2.62615703]
[1753099507923,0.8233,3808.4,3806.8,0.4676]
[1753099507924,0.8233,3808.4,3807.6,2.6263231]
[1753099508136,0.8233,3809.1,3808.3,2.62580026]
[1753099508433,0.8233,3809.1,3807.4,3.09404718]
[1753099508607,0.8233,3809.1,3807.5,0.02626395]
[1753099508797,0.8233,3809.1,3808.3,2.62579365]
[1753099508994,0.8233,3809.1,3807.7,0.02626257]
[1753099509216,0.8233,3809.1,3808.3,2.62582819]
[1753099509416,0.8233,3809.1,3807.7,0.02626257]
[1753099509417,0.8233,3809.1,3807.7,0.49386257]
[1753099509620,0.002,3809.2,3808.0,3.55]
[1753099509923,0.002,3809.2,3808.5,2.62567553]
[1753099510090,0.002,3809.2,3808.7,2.62555386]
[1753099510287,0.002,3809.2,3808.9,2.62542025]
[1753099510700,0.002,3809.2,3807.3,3.41423307]
[1753099511028,0.002,3809.2,3808.8,2.62543543]
[1753099511431,2.62727563,3809.2,3808.5,2.62565105]
[1753099511631,0.4358,3809.2,3808.4,2.62572795]
[1753099512131,0.4358,3809.2,3808.2,2.6259125]
[1753099512132,2.62543281,3808.9,3808.2,2.6259125]
[1753099512430,3.0610259,3809.2,3807.5,0.55]
[1753099512431,0.7889,3808.8,3807.5,0.55]
[1753099512726,0.7889,3808.8,3808.2,2.62585199]
[1753099513127,0.7889,3808.8,3808.2,2.62590676]
[1753099513439,7.87670331,3808.7,3804.4,0.7662]
[1753099513597,0.7889,3806.3,3803.8,1.2338]
[1753099513795,3.41661054,3805.6,3803.2,1.2338]
[1753099514133,0.4600586,3805.5,3803.2,1.2338]
[1753099514633,0.4600586,3805.5,3803.3,0.85392783]
[1753099514819,0.65464799,3805.5,3803.4,0.02629226]
[1753099514992,2.62817229,3805.0,3804.1,2.62872439]
[1753099515197,2.62797726,3805.3,3804.2,2.65495215]
[1753099515198,2.65418962,3805.3,3804.2,2.65495215]
[1753099515400,0.0262586,3805.3,3804.2,0.02628673]
[1753099515697,3.06178276,3805.2,3803.3,3.01559556]
[1753099515911,3.06178276,3805.2,3803.2,1.2338]
[1753099515912,2.62869111,3804.2,3803.4,3.05413664]
[1753099516112,0.0262586,3804.9,3803.4,0.42493956]
[1753099516602,2.62859954,3804.4,3803.5,2.62915367]
[1753099516795,9.94696765,3804.3,3802.6,0.001]
[1753099517047,2.62917737,3803.5,3802.6,0.001]
[1753099517332,0.0262586,3803.4,3802.6,0.001]
[1753099517534,3.457,3804.2,3802.6,0.001]
[1753099517535,2.62940614,3803.2,3802.6,0.001]
[1753099517831,14.5262586,3803.1,3802.6,0.001]
[1753099518037,2.62964129,3802.9,3802.6,0.001]
[1753099518329,0.0262586,3802.8,3802.6,0.001]
[1753099518734,3.08671046,3802.7,3802.6,0.001]
[1753099519733,0.8051,3803.0,3802.6,0.001]
[1753099519898,14.5,3803.1,3802.7,2.62971023]
[1753099520099,14.5,3803.1,3802.9,2.6295436]
[1753099521099,14.5,3803.1,3802.6,0.001]
[1753099521305,0.7914,3804.4,3802.8,0.55]
[1753099521636,0.8356586,3805.0,3803.3,0.8104]
[1753099521824,14.5,3804.9,3803.7,3.0]
[1753099521999,2.6277788,3805.5,3804.4,2.62852666]
[1753099522198,4.41046159,3805.4,3804.5,2.6547346]
[1753099522411,14.5,3805.3,3804.5,2.6547346]
[1753099522733,17.12794024,3805.3,3804.3,2.62853548]
[1753099522906,14.5,3805.3,3804.5,2.62840151]
[1753099523101,14.5,3805.3,3804.0,0.55]
[1753099523346,14.5,3805.3,3801.0,0.001]
[1753099523347,0.0262586,3805.2,3803.4,0.39897804]
[1753099523551,0.0262586,3805.2,3803.8,3.55]
[1753099523835,14.5,3805.3,3804.6,2.62834451]
[1753099524038,14.5,3805.3,3803.9,0.4735]
[1753099524239,0.8094,3805.6,3805.2,2.62798276]
[1753099524408,0.8213586,3806.1,3804.7,0.4735]
[1753099524740,14.5,3806.0,3805.6,2.62769454]
[1753099525037,14.5,3806.0,3805.6,2.62769093]
[1753099525228,14.5,3806.0,3804.7,0.4735]
[1753099525229,14.5,3806.0,3805.0,3.17810241]
[1753099525427,14.5,3806.0,3805.6,2.62764436]
[1753099525624,14.5,3806.0,3805.5,2.62776122]
[1753099525808,14.5,3806.0,3805.7,2.62760804]
[1753099526007,14.5,3806.0,3805.1,2.62805182]
[1753099526206,14.5,3806.0,3805.3,2.62791369]
[1753099526406,14.5,3806.0,3805.9,2.6274994]
[1753099526612,0.8015,3806.6,3805.9,0.4735]
[1753099526965,2.62661198,3807.2,3806.0,0.0262743]
[1753099527252,14.5,3807.1,3806.4,2.62712082]
[1753099527457,17.12669367,3807.1,3806.4,2.62712082]
[1753099527637,2.62677203,3807.0,3806.3,2.62720533]
[1753099527834,2.62677203,3807.0,3805.6,2.62769407]
[1753099527835,0.4832586,3806.9,3805.4,0.7678]
[1753099528010,0.002,3806.1,3805.1,0.4735]
[1753099528343,2.62937488,3806.1,3805.3,2.62785995]
[1753099528560,2.62750456,3805.9,3805.1,2.62801068]
[1753099528847,14.5262586,3806.0,3802.6,2.6307629]
[1753099528848,2.6278665,3805.4,3804.0,4.2504]
[1753099529012,0.0262586,3805.3,3804.5,2.62841476]
[1753099529210,0.0262586,3805.3,3804.6,3.0]
[1753099529462,2.65418254,3805.3,3804.6,3.0]
[1753099529759,2.65418254,3805.3,3804.0,1.2504]
[1753099529760,0.7999,3805.1,3803.4,1.227]
[1753099529910,2.62850531,3804.5,3803.5,2.62915735]
[1753099530110,2.65481262,3804.4,3803.6,2.62908823]
[1753099530351,0.0262586,3804.4,3803.7,0.02629019]
[1753099530548,9.15416765,3805.0,3803.7,0.02629019]
[1753099530549,14.5,3804.3,3803.8,3.0]
[1753099530734,3.08513555,3805.0,3804.3,2.6285565]
[1753099530939,0.0262586,3804.9,3804.0,2.62879624]
[1753099531314,14.5,3804.8,3804.3,2.62855443]
[1753099531514,0.7999,3805.1,3804.3,2.62855443]
[1753099531515,0.7999,3805.1,3804.7,2.62832812]
[1753099531757,0.0262586,3805.6,3804.7,0.4735]
[1753099531913,0.8078,3805.7,3804.3,0.26285544]
[1753099532120,0.8078,3805.7,3804.6,2.62834518]
[1753099532121,2.62791048,3805.4,3804.6,2.62834518]
[1753099532360,0.0262586,3805.3,3804.6,2.62839175]
[1753099532954,14.5,3805.2,3804.6,2.62838036]
[1753099533126,0.0262586,3805.1,3804.1,3.0]
[1753099533335,0.0262586,3805.1,3804.8,2.62825883]
[1753099533660,0.0262586,3805.1,3804.0,3.0]
[1753099533661,2.6541114,3805.4,3804.7,2.6283165]
[1753099533874,14.5,3805.0,3804.4,2.62850544]
[1753099534013,14.5,3805.0,3803.9,0.4735]
[1753099534216,0.8078,3805.7,3804.2,0.55]
[1753099534442,0.8078,3805.7,3805.2,2.62793331]
[1753099534719,14.5,3805.6,3805.3,2.62787804]
[1753099534939,14.5,3805.6,3805.4,2.62781817]
[1753099535125,14.5,3805.6,3804.7,0.02628328]
[1753099535326,14.5,3805.6,3805.5,2.62777558]
[1753099535525,14.5,3805.6,3804.9,0.02628189]
[1753099535731,14.5,3805.6,3805.5,2.62777558]
[1753099536131,0.002,3806.1,3805.7,2.62763154]
[1753099536453,0.0282586,3806.1,3805.7,2.62758723]
[1753099536756,0.0282586,3806.1,3804.8,0.4735]
[1753099536757,14.5,3806.0,3805.6,2.62768429]
[1753099536941,14.5,3806.0,3805.7,2.62762389]
[1753099537347,14.5,3806.0,3805.9,2.6274994]
[1753099537656,14.5,3806.0,3805.6,2.6276814]
[1753099537857,14.5,3806.0,3805.8,2.62756815]
[1753099538158,0.4832586,3805.9,3804.7,2.62832812]
[1753099538321,2.62762288,3805.8,3805.0,2.62810977]
[1753099538528,0.0262586,3805.7,3804.5,3.10196628]
[1753099538851,0.0262586,3805.7,3805.1,2.62803752]
[1753099539032,14.5,3806.0,3805.2,2.62792634]
[1753099539234,0.0262586,3805.9,3805.2,2.62795959]
[1753099539432,0.0262586,3805.9,3804.7,0.31282503]
[1753099539634,0.0262586,3805.9,3805.2,2.62797545]
[1753099539828,0.0262586,3805.9,3804.5,0.4735]
[1753099540025,0.0262586,3805.9,3804.9,2.62817276]
[1753099540026,2.62776009,3805.6,3804.9,2.62817276]
[1753099540356,0.0262586,3805.5,3804.9,2.62817276]
[1753099540542,14.5,3806.0,3804.7,0.02628328]
[1753099540748,0.0262586,3805.8,3804.8,0.31281805]
[1753099540945,14.5,3806.0,3804.9,3.20442151]
[1753099541147,14.5,3806.0,3805.2,2.62795141]
[1753099541347,0.0262586,3805.9,3805.2,2.62793767]
[1753099541660,0.0262586,3805.9,3805.3,2.62788081]
[1753099541834,0.0262586,3805.9,3805.0,0.4735]
[1753099541835,14.5,3805.9,3805.0,0.4735]
[1753099542161,2.62756844,3805.8,3805.1,2.62798637]
[1753099542324,0.0262586,3805.7,3805.1,2.62798637]
[1753099542725,2.65390303,3805.7,3805.0,2.62811104]
[1753099542927,0.0262586,3805.7,3804.5,0.8285]
[1753099543129,2.62795318,3805.3,3804.6,2.62835292]
[1753099543364,0.457,3805.8,3804.6,2.62835292]
[1753099543365,2.62799657,3805.2,3804.6,2.62835292]
[1753099543567,2.62818415,3805.0,3804.1,0.7789]
[1753099543772,2.62818415,3805.0,3804.0,3.10230692]
[1753099544269,0.8229,3805.6,3805.0,2.62805891]
[1753099544468,0.8229,3805.6,3804.2,3.0]
[1753099544469,0.8229,3805.6,3804.7,0.4735]
[1753099544641,14.5,3805.8,3805.4,2.62782605]
[1753099544842,14.5,3805.8,3805.7,2.62761232]
[1753099545172,0.002,3806.1,3805.1,0.49978051]
[1753099545341,0.002,3806.1,3805.4,2.62783465]
[1753099545538,0.002,3806.1,3805.8,2.62752599]
[1753099545737,14.502,3806.1,3805.7,2.62761093]
[1753099545927,14.502,3806.1,3805.1,0.4735]
[1753099546134,14.502,3806.1,3805.7,2.62759205]
[1753099546440,14.502,3806.1,3805.4,0.5]
[1753099546760,0.002,3806.1,3805.8,2.62751314]
[1753099546959,0.002,3806.1,3806.0,2.62743037]
[1753099547948,0.002,3806.1,3805.6,2.6276377]
[1753099548152,0.002,3806.1,3805.8,2.62756307]
[1753099548460,0.0282586,3806.1,3805.5,2.62772986]
[1753099548760,2.627511,3805.9,3805.2,2.6279353]
[1753099548964,2.62751597,3805.9,3804.9,0.4599]
[1753099549127,2.65564064,3806.1,3804.9,0.4599]
[1753099549324,2.65564064,3806.1,3805.4,2.62779728]
[1753099549665,2.62744798,3806.0,3805.4,2.62779728]
[1753099549970,0.0262586,3805.9,3805.3,2.62790279]
[1753099550467,0.7763,3805.8,3804.3,0.4599]
[1753099550629,2.65389817,3805.7,3804.3,0.4599]
[1753099550833,2.62786247,3805.4,3804.7,2.62830563]
[1753099551034,2.6279975,3805.2,3804.5,2.62842464]
[1753099551238,2.62784303,3805.5,3804.7,2.628326]
[1753099551539,0.0262586,3805.4,3804.7,2.628326]
[1753099551837,0.0262586,3805.4,3804.5,2.62839906]
[1753099552037,0.4517,3805.7,3804.3,3.08843549]
[1753099552038,17.12793485,3805.3,3804.4,2.6285221]
[1753099552237,17.12793485,3805.3,3804.7,2.62831656]
[1753099552432,2.62798447,3805.2,3804.3,3.0884421]
[1753099552668,2.62806521,3805.1,3804.5,2.62840624]
[1753099553072,0.0262586,3805.2,3804.5,0.57169732]
[1753099553233,2.62763809,3805.7,3804.7,2.62832812]
[1753099553432,0.7763,3805.8,3804.6,3.08823536]
[1753099553433,2.65396679,3805.6,3804.6,3.08823536]
[1753099553767,14.5,3805.6,3804.6,0.4599]
[1753099553935,14.5,3805.6,3804.9,2.62812678]
[1753099554136,14.5,3805.6,3804.6,0.4599]
[1753099554470,14.5,3805.6,3804.7,2.62827778]
[1753099554765,14.5,3805.6,3804.5,2.62839777]
[1753099554966,2.62784464,3805.4,3804.5,2.62839777]
[1753099555177,2.62803846,3805.2,3804.6,2.6283839]
[1753099555346,2.62803846,3805.2,3804.3,2.62856213]
[1753099555675,0.0262586,3805.3,3804.7,2.62827805]
[1753099556175,0.0262586,3805.3,3804.8,2.62825644]
[1753099556337,14.5,3805.6,3805.0,2.62807908]
[1753099557038,0.002,3806.1,3805.0,2.62809669]
[1753099557372,2.62775053,3805.6,3805.0,2.62809669]
[1753099557670,14.5,3805.5,3805.0,2.62809669]
[1753099557863,2.62775053,3805.6,3805.0,2.62809669]
[1753099558167,10.36791668,3805.8,3804.6,0.4599]
[1753099558168,0.0262586,3805.7,3804.6,0.4599]
[1753099558334,14.5,3805.6,3805.3,2.62789847]
[1753099558978,14.5,3805.6,3805.4,2.62777689]
[1753099559163,14.5,3805.6,3805.3,2.62788589]
[1753099559349,14.5,3805.6,3804.6,0.4599]
[1753099559567,14.5,3805.6,3804.7,2.62826806]
[1753099559568,2.62784867,3805.4,3804.7,2.62826806]
[1753099559733,2.65405318,3805.5,3804.8,2.62820173]
[1753099560167,2.62785837,3805.4,3804.2,0.55]
[1753099560373,0.8276,3805.1,3803.9,0.001]
[1753099560537,2.62818996,3804.9,3804.2,2.62865207]
[1753099560737,0.0262586,3804.8,3804.2,2.62865207]
[1753099560977,3.45571174,3805.1,3803.9,0.001]
[1753099560978,0.8276,3805.1,3804.3,0.02628604]
[1753099561139,0.8276,3805.1,3804.8,2.62821005]
[1753099561576,0.8276,3805.1,3804.1,0.4599]
[1753099561751,2.62816318,3805.0,3804.4,2.6285323]
[1753099562085,0.8276,3805.1,3804.8,2.62823184]
[1753099562475,0.69858684,3807.4,3804.8,2.62823184]
[1753099562476,0.777,3806.1,3804.9,0.4599]
[1753099562687,0.002,3806.1,3806.0,2.62743037]
[1753099562992,0.002,3806.1,3806.0,3.08733037]
[1753099563883,0.002,3806.1,3806.0,2.62743037]
[1753099564038,0.002,3806.1,3806.0,3.08733037]
[1753099564375,0.002,3806.1,3806.0,6.76663413]
[1753099564593,0.002,3806.1,3806.0,6.74035983]
[1753099564780,0.002,3806.1,3806.0,6.76663413]
[1753099564940,0.002,3806.1,3806.0,7.31663413]
[1753099565138,0.002,3806.1,3806.0,7.29035983]
[1753099566149,1e-08,3806.4,3806.3,3.17722328]
[1753099566388,1e-08,3806.4,3806.3,8.56491261]
[1753099566882,1e-08,3806.4,3806.3,7.18171261]
[1753099567085,1e-08,3806.4,3806.3,6.08712328]
[1753099568553,1e-08,3806.4,3806.3,6.11339551]
[1753099568748,1e-08,3806.4,3806.3,6.66339551]
[1753099568946,1e-08,3806.4,3806.3,7.47959551]
[1753099569166,1e-08,3806.4,3806.3,7.45332328]
[1753099569377,1e-08,3806.4,3806.3,8.52668957]
[1753099572554,0.002,3807.2,3807.1,2.62667121]
[1753099572759,0.002,3807.2,3807.1,5.62667121]
[1753099573156,0.002,3807.2,3806.4,2.62715426]